fUSD/lending_fUSD_20240514
["ID","MTS","AMOUNT","RATE_DAILY","PERIOD"]
[327019915,1715719348450,215.87526692,0.00041002,30]
[327019916,1715719348727,153.12970752,0.00044406,30]
[327019917,1715719348888,1604.81167017,0.00041419,30]
[327019918,1715719348930,215.87526692,0.00041077,30]
[327019919,1715719349060,3035.78435377,0.00040096,30]
[327019920,1715719349099,154.46457135,0.00040089,30]
[327019921,1715719349417,1604.81167017,0.00044399,30]
[327019922,1715719349503,501.61548746,0.00040013,30]
[327019923,1715719349531,3035.78435377,0.00043769,30]
[327019924,1715719349921,1604.81167017,0.00044743,30]
[327019925,1715719349955,215.87526692,0.00042986,30]
[327019926,1715719350016,501.61548746,0.00040118,30]
[327019927,1715719350044,3035.78435377,0.00044197,30]
[327019928,1715719350144,154.46457135,0.00040802,30]
[327019929,1715719350395,170.00178119,0.000426,30]
[327019930,1715719350423,1604.81167017,0.00045256,30]
[327019931,1715719350490,215.87526692,0.00043016,30]
[327019932,1715719350519,501.61548746,0.00043157,30]
[327019933,1715719350553,3035.78435377,0.00044375,30]
[327019934,1715719350666,154.46457135,0.00042714,30]
[327019935,1715719350915,1604.81167036,0.000462,30]
[327019936,1715719350980,215.87526692,0.00044652,30]
[327019937,1715719351015,501.61548748,0.00044507,30]
[327019938,1715719351042,3035.78435377,0.00045441,30]
[327019939,1715719351184,154.46457135,0.00043138,30]
[327019940,1715719351251,157.36756573,0.00043772,30]
[327019941,1715719351319,155.49398153,0.00042232,30]
[327019942,1715719351491,215.87526692,0.00045413,30]
[327019943,1715719351520,3035.78435377,0.00045799,30]
[327019944,1715719351813,154.46457135,0.00043209,30]
[327019945,1715719351841,445.45914179,0.0004118,30]
[327019946,1715719351869,170.13708378,0.00041337,30]
[327019947,1715719351966,157.36756573,0.00043984,30]
[327019948,1715719352027,155.49398153,0.00045792,30]
[327019949,1715719352062,3035.7843539,0.00046007,30]
[327019950,1715719352239,215.87526692,0.00046069,30]
[327019951,1715719352287,445.45914179,0.00041957,30]
[327019952,1715719352318,157.36756573,0.00044557,30]
[327019953,1715719352351,154.46457135,0.00043293,30]
[327019954,1715719352379,170.13708378,0.00041792,30]
[327019955,1715719352852,170.13708378,0.00046318,30]
[327019956,1715719352882,154.46457135,0.00045505,30]
[327019957,1715719352913,215.87526717,0.00046472,30]
[327019958,1715719352957,445.45914179,0.00041983,30]
[327019959,1715719353088,153.99615672,0.00040678,30]
[327019960,1715719353423,445.45914179,0.00044015,30]
[327019961,1715719353596,153.99615672,0.00041049,30]
[327019962,1715719353689,163.73836524,0.00045676,30]
[327019963,1715719353910,445.45914179,0.00044069,30]
[327019964,1715719353947,168.24161348,0.00041766,30]
[327019965,1715719354061,153.21424556,0.00044829,30]
[327019966,1715719354094,153.99615672,0.00041973,30]
[327019967,1715719354446,445.45914179,0.00044266,30]
[327019968,1715719354703,153.99615672,0.00042508,30]
[327019969,1715719354972,445.45914179,0.00044874,30]
[327019970,1715719355225,153.99615672,0.00045569,30]
[327019971,1715719355498,445.45914179,0.00045617,30]
[327019972,1715719355707,243.86210892,0.00040775,30]
[327019973,1715719355904,153.99615696,0.00046171,30]
[327019974,1715719356031,445.45914181,0.00046559,30]
[327019975,1715719356249,243.86210892,0.00041294,30]
[327019976,1715719356540,864.5608104,0.00040434,30]
[327019977,1715719356738,243.86210892,0.00042163,30]
[327019978,1715719356987,153.87487061,0.00040225,30]
[327019979,1715719357053,864.5608104,0.00042416,30]
[327019980,1715719357427,243.86210892,0.00043234,30]
[327019981,1715719357491,153.87487061,0.00041011,30]
[327019982,1715719357599,864.5608104,0.00043293,30]
[327019983,1715719357915,243.86210892,0.00043747,30]
[327019984,1715719358138,153.87487061,0.00044773,30]
[327019985,1715719358180,864.5608104,0.00043824,30]
[327019986,1715719358510,153.87487061,0.00045569,30]
[327019987,1715719358639,243.86210892,0.00044518,30]
[327019988,1715719358678,864.5608104,0.00045058,30]
[327019989,1715719359045,158.93982304,0.00040267,30]
[327019990,1715719359077,153.87487061,0.00046172,30]
[327019991,1715719359146,243.86210892,0.00044883,30]
[327019992,1715719359183,864.5608104,0.00045505,30]
[327019993,1715719359567,158.93982304,0.00041754,30]
[327019994,1715719359648,243.86210914,0.00045956,30]
[327019995,1715719359678,864.5608104,0.00046193,30]
[327019996,1715719359856,1035.0,0.00044631,30]
[327019997,1715719360880,663.00932996,0.00040733,30]
[327019998,1715719361357,663.00932996,0.00040984,30]
[327019999,1715719361974,663.00932996,0.00041779,30]
[327020000,1715719362116,213.44816029,0.00052,30]
[327020001,1715719362473,663.00932996,0.0004192,30]
[327020002,1715719362965,663.00932996,0.00042002,30]
[327020003,1715719363477,663.00932996,0.00043311,30]
[327020004,1715719364027,214.22430599,0.00040393,30]
[327020005,1715719364057,866.29501818,0.00040032,30]
[327020006,1715719364086,663.00932996,0.00044616,30]
[327020007,1715719364310,866.29501818,0.00040339,30]
[327020008,1715719364339,214.22430599,0.0004043,30]
[327020009,1715719364504,663.00932996,0.00044725,30]
[327020010,1715719364816,866.29501818,0.00041018,30]
[327020011,1715719364844,214.22430599,0.000419,30]
[327020012,1715719365351,214.22430599,0.00046148,30]
[327020013,1715719365379,866.29501818,0.00043716,30]
[327020014,1715719365848,214.22430609,0.00046214,30]
[327020015,1715719365897,866.29501818,0.00044097,30]
[327020016,1715719366129,151.01182748,0.0004062,30]
[327020017,1715719366412,866.29501818,0.00044623,30]
[327020018,1715719366654,151.01182748,0.00044106,30]
[327020019,1715719366923,866.29501818,0.00045168,30]
[327020020,1715719367170,151.01182748,0.00044362,30]
[327020021,1715719367586,866.29501818,0.00045439,30]
[327020022,1715719367662,151.01182748,0.00045164,30]
[327020023,1715719368085,866.29501846,0.00045496,30]
[327020024,1715719368324,151.01182755,0.00045801,30]
[327020025,1715719381057,1035.0,0.00042399,30]
[327020026,1715719381849,333.68,0.00033151,120]
[327020027,1715719382084,333.68,0.00044384,120]
[327020028,1715719388200,618.72,0.00041096,30]
[327020029,1715719436957,2000.0,0.000465,56]
[327020030,1715719437385,2000.0,0.0004651,56]
[327020031,1715719437899,2000.0,0.0004652,56]
[327020032,1715719438360,2000.0,0.0004653,56]
[327020033,1715719438811,2000.0,0.0004654,56]
[327020034,1715719439479,2000.0,0.0004655,57]
[327020035,1715719439894,2000.0,0.0004656,57]
[327020036,1715719440373,2737.447851,0.0004657,57]
[327020037,1715719441454,2000.0,0.00052,82]
[327020038,1715719441603,2000.0,0.0005201,82]
[327020039,1715719442024,2000.0,0.0005202,82]
[327020040,1715719442386,2000.0,0.0005203,82]
[327020041,1715719442881,2000.0,0.0005204,82]
[327020042,1715719443297,2000.0,0.0005205,82]
[327020043,1715719449001,4829.11,9.772e-05,2]
[327020044,1715719455769,1000.0,0.00052055,120]
[327020045,1715719456073,1000.0,0.00052055,120]
[327020046,1715719456380,1000.0,0.00052055,120]
[327020047,1715719456684,1000.0,0.00052055,120]
[327020048,1715719457031,1000.0,0.00052055,120]
[327020049,1715719457326,176.42160221,0.00052055,120]
[327020050,1715719461664,1673.744785,0.00044,44]
[327020052,1715719507670,8300.76,9.839e-05,2]
[327020054,1715719521939,356.86,0.00038904,120]
[327020055,1715719529510,150.0,0.00045,85]
[327020056,1715719530155,246.0,0.00046,96]
[327020057,1715719530625,150.0,0.0005,120]
[327020059,1715719540788,1489.199308,0.00050137,30]
[327020060,1715719542274,1489.199308,0.00050959,30]
[327020061,1715719543804,1489.199308,0.00051781,30]
[327020062,1715719544447,449.6,9.767e-05,2]
[327020063,1715719569716,347.024503,0.00052,30]
[327020064,1715719572909,200.0,0.00052,30]
[327020065,1715719575653,2233.62443,0.0005153,56]
[327020066,1715719575730,2233.62444,0.0005153,56]
[327020067,1715719575759,2233.62444,0.0005153,56]
[327020068,1715719575805,2233.62444,0.0005153,56]
[327020069,1715719575932,2233.62444,0.0005153,56]
[327020070,1715719576027,2233.62444,0.0005153,56]
[327020071,1715719584837,165.6,9.846e-05,2]
[327020072,1715719585133,165.6,9.92e-05,2]
[327020073,1715719585653,165.6,9.993e-05,2]
[327020074,1715719589830,165.13,9.709e-05,2]
[327020075,1715719590002,682.80827706,0.00052,30]
[327020076,1715719590627,170.75852823,0.00052,30]
[327020077,1715719602541,1000.0,0.00052054,120]
[327020078,1715719606627,170.75852823,0.00052,30]
[327020079,1715719609996,682.80827706,0.00052,30]
[327020080,1715719623999,682.80827706,0.00052,30]
[327020081,1715719630641,170.75852823,0.00052,30]
[327020082,1715719636490,150.53,8.219e-05,2]
[327020083,1715719637485,164.18792334,0.00043639,30]
[327020084,1715719637528,171.09781771,0.00043149,30]
[327020085,1715719637768,170.36685245,0.00047294,30]
[327020086,1715719638173,171.09781771,0.00043753,30]
[327020087,1715719638297,159.94267141,0.00048118,30]
[327020088,1715719638474,150.01013026,0.00046711,30]
[327020089,1715719638828,157.15908436,0.00040589,30]
[327020090,1715719638970,170.92843818,0.00044207,30]
[327020091,1715719639369,157.15908436,0.00040647,30]
[327020092,1715719639823,157.15908436,0.00041372,30]
[327020093,1715719640005,682.80827706,0.00052,30]
[327020094,1715719640348,157.15908436,0.00041377,30]
[327020095,1715719641104,157.15908436,0.00046163,30]
[327020096,1715719641362,157.15908436,0.00046658,30]
[327020097,1715719643951,168.00190561,0.00040284,30]
[327020098,1715719644511,166.42773029,0.00045022,30]
[327020099,1715719645003,151.52583475,0.00046009,30]
[327020100,1715719645043,167.81751752,0.00042856,30]
[327020101,1715719645078,166.42773029,0.000469,30]
[327020102,1715719645324,169.00998554,0.00040956,30]
[327020103,1715719645408,153.12970745,0.00044003,30]
[327020104,1715719645486,151.52583475,0.00047896,30]
[327020105,1715719645526,166.42773029,0.00047518,30]
[327020106,1715719645892,169.00998554,0.00044482,30]
[327020107,1715719645924,154.46457135,0.00040704,30]
[327020108,1715719645960,153.12970745,0.00044871,30]
[327020109,1715719646036,166.42773034,0.00047796,30]
[327020110,1715719646674,170.75852823,0.00052,30]
[327020111,1715719646703,153.8748706,0.00040408,30]
[327020112,1715719646931,169.00998558,0.00047753,30]
[327020113,1715719647141,153.8748706,0.00040416,30]
[327020114,1715719647176,155.49398153,0.00040169,30]
[327020115,1715719647566,167.91596974,0.00045799,30]
[327020116,1715719647658,170.39606108,0.00042588,30]
[327020117,1715719647721,153.99615672,0.00041682,30]
[327020118,1715719647753,153.8748706,0.00042095,30]
[327020119,1715719647787,163.73836524,0.00043707,30]
[327020120,1715719647987,159.73933861,0.00042491,30]
[327020121,1715719648118,167.91596978,0.00047414,30]
[327020122,1715719648165,170.39606108,0.00043487,30]
[327020123,1715719648379,153.99615672,0.00042944,30]
[327020124,1715719648408,153.8748706,0.00043745,30]
[327020125,1715719648447,163.73836524,0.00047794,30]
[327020126,1715719648533,159.73933861,0.00043331,30]
[327020127,1715719648749,153.99615672,0.00042945,30]
[327020128,1715719649128,153.87487074,0.00045106,30]
[327020129,1715719649164,2327.43467122,0.00040957,30]
[327020130,1715719649243,153.99615672,0.00043875,30]
[327020131,1715719649348,1230.35561379,0.0004116,30]
[327020132,1715719649424,434.73342246,0.00041056,30]
[327020133,1715719649553,159.73933861,0.00046153,30]
[327020134,1715719649612,2327.43467122,0.00041259,30]
[327020135,1715719649747,153.99615672,0.00046321,30]
[327020136,1715719649828,151.11268684,0.00040849,30]
[327020137,1715719649855,1230.35561379,0.00041441,30]
[327020138,1715719650108,2327.43467122,0.00042631,30]
[327020139,1715719650165,434.73342246,0.0004174,30]
[327020140,1715719650249,153.99615672,0.00048568,30]
[327020141,1715719650337,1230.35561379,0.00043451,30]
[327020142,1715719650365,151.11268684,0.00041725,30]
[327020143,1715719650630,2327.43467122,0.0004325,30]
[327020144,1715719650677,434.73342246,0.0004352,30]
[327020145,1715719650843,1230.35561379,0.00043463,30]
[327020146,1715719650873,151.11268684,0.0004184,30]
[327020147,1715719650976,153.99615672,0.00048744,30]
[327020148,1715719651029,157.36756573,0.00043958,30]
[327020149,1715719651126,2327.43467122,0.00043847,30]
[327020150,1715719651192,434.73342246,0.00044283,30]
[327020151,1715719651339,151.11268684,0.00043068,30]
[327020152,1715719651378,1230.35561379,0.00046836,30]
[327020153,1715719651695,2327.43467122,0.00044706,30]
[327020154,1715719651727,434.73342246,0.00045759,30]
[327020155,1715719651868,151.11268684,0.00045584,30]
[327020156,1715719651913,1230.35561379,0.00047213,30]
[327020157,1715719652203,434.73342246,0.00046241,30]
[327020158,1715719652231,2327.43467122,0.00046036,30]
[327020159,1715719652369,151.11268684,0.00047623,30]
[327020160,1715719652701,434.73342246,0.00046634,30]
[327020161,1715719652909,151.11268696,0.00048448,30]
[327020162,1715719653219,434.73342246,0.00046903,30]
[327020163,1715719653255,2327.43467133,0.00047946,30]
[327020164,1715719653459,1230.355614,0.0004884,30]
[327020165,1715719653725,434.73342246,0.00047226,30]
[327020166,1715719654258,434.73342262,0.00048302,30]
[327020167,1715719654287,486.20684197,0.00042529,30]
[327020168,1715719654627,178.52025499,0.00040738,30]
[327020169,1715719654780,486.20684197,0.00042666,30]
[327020170,1715719655134,178.52025499,0.00040792,30]
[327020171,1715719655307,486.20684197,0.00043635,30]
[327020172,1715719655448,158.93982304,0.00040014,30]
[327020173,1715719655491,662.82995464,0.0004081,30]
[327020174,1715719655654,178.52025499,0.0004147,30]
[327020175,1715719655799,486.20684197,0.00044364,30]
[327020176,1715719655969,158.93982304,0.00048329,30]
[327020177,1715719655999,662.82995464,0.00042133,30]
[327020178,1715719656200,178.52025499,0.00041753,30]
[327020179,1715719656488,662.82995464,0.00042305,30]
[327020180,1715719656516,158.93982304,0.00048795,30]
[327020181,1715719656775,178.52025499,0.00041825,30]
[327020182,1715719656869,486.20684197,0.00045451,30]
[327020183,1715719656963,178.8322132,0.00040992,30]
[327020184,1715719657116,158.93982304,0.00048849,30]
[327020185,1715719657146,662.82995464,0.00044144,30]
[327020186,1715719657366,151.01182748,0.00041372,30]
[327020187,1715719657398,178.52025499,0.00042877,30]
[327020188,1715719657431,486.20684197,0.00045969,30]
[327020189,1715719657660,662.82995464,0.00044698,30]
[327020190,1715719657844,311.82139925,0.00041528,30]
[327020191,1715719657876,151.01182748,0.00042003,30]
[327020192,1715719657905,178.52025499,0.00047261,30]
[327020193,1715719658073,486.20684197,0.00048563,30]
[327020194,1715719658102,178.8322132,0.0004169,30]
[327020195,1715719658140,368.70719175,0.00052,30]
[327020196,1715719658179,662.82995464,0.00044853,30]
[327020197,1715719658527,151.01182748,0.00042218,30]
[327020198,1715719658556,178.52025499,0.00047767,30]
[327020199,1715719658590,311.82139925,0.00042431,30]
[327020200,1715719658627,486.20684197,0.00048615,30]
[327020201,1715719658660,178.8322132,0.00041834,30]
[327020202,1715719658694,662.82995464,0.00045395,30]
[327020203,1715719658879,178.52025504,0.0004886,30]
[327020204,1715719658916,311.82139925,0.00044464,30]
[327020205,1715719658946,178.8322132,0.00042032,30]
[327020206,1715719659017,486.20684199,0.00048884,30]
[327020207,1715719659191,662.82995464,0.00047366,30]
[327020208,1715719659388,151.01182748,0.00043433,30]
[327020209,1715719659418,178.8322132,0.00042162,30]
[327020210,1715719659448,311.82139925,0.00044563,30]
[327020211,1715719659713,662.82995464,0.00047419,30]
[327020212,1715719659867,178.8322132,0.00043439,30]
[327020213,1715719659903,151.01182748,0.00043776,30]
[327020214,1715719659975,311.82139925,0.00044917,30]
[327020215,1715719660210,662.82995464,0.00047689,30]
[327020216,1715719660333,178.8322132,0.0004398,30]
[327020217,1715719660395,151.01182748,0.00046093,30]
[327020218,1715719660480,311.82139925,0.00046506,30]
[327020219,1715719660704,662.82995464,0.00048133,30]
[327020220,1715719660776,178.8322132,0.00044494,30]
[327020221,1715719660908,151.01182748,0.00046681,30]
[327020222,1715719661194,662.82995464,0.00048815,30]
[327020223,1715719661224,178.8322132,0.00045031,30]
[327020224,1715719661407,151.01182748,0.00047619,30]
[327020225,1715719661534,311.82139934,0.00046862,30]
[327020226,1715719661667,178.8322132,0.00047736,30]
[327020227,1715719662145,178.8322132,0.00047845,30]
[327020228,1715719662472,151.01182748,0.00048593,30]
[327020229,1715719662587,178.8322132,0.00047867,30]
[327020230,1715719662702,606.40651272,0.00040906,30]
[327020231,1715719663340,606.40651272,0.00041158,30]
[327020232,1715719663586,178.83221344,0.00048541,30]
[327020233,1715719663855,606.40651272,0.00043677,30]
[327020234,1715719664640,170.75852823,0.00052,30]
[327020235,1715719664931,606.40651272,0.00044146,30]
[327020236,1715719665468,606.40651272,0.00044769,30]
[327020237,1715719665979,606.40651272,0.00044927,30]
[327020238,1715719666490,606.40651272,0.00045877,30]
[327020239,1715719666996,606.40651272,0.00047354,30]
[327020240,1715719667505,606.4065129,0.00047679,30]
[327020241,1715719680652,170.75852823,0.00052,30]
[327020242,1715719698647,256.13779234,0.00052,30]
[327020243,1715719717442,155.28,0.00030027,30]
[327020244,1715719717827,155.28,0.00033383,30]
[327020245,1715719718206,155.28,0.00036738,30]
[327020246,1715719718603,155.28,0.00040093,30]
[327020247,1715719719024,155.28,0.00043448,90]
[327020248,1715719719495,155.28,0.00046803,90]
[327020249,1715719719836,155.28,0.00050158,90]
[327020252,1715719806981,184023.09843397,0.0005,120]
[327020253,1715719807008,515976.90156603,0.0005,120]
[327020254,1715719820022,1042.439515,0.00050137,30]
[327020255,1715719821609,1042.439515,0.00050959,30]
[327020256,1715719823352,1042.439515,0.00051781,30]
[327020273,1715719832229,-162.50319315,0.00010061,2]
[327020276,1715719832238,-402.21730238,0.00010062,2]
[327020281,1715719832257,-247.0097565,0.00010062,2]
[327020284,1715719832267,-6561.3381804,0.00010064,2]
[327020287,1715719832277,-1488.679186,0.00010064,2]
[327020289,1715719832289,-580.55865504,0.00010064,2]
[327020291,1715719832301,-1715.63513374,0.00010064,2]
[327020293,1715719832310,-165.6,0.00010066,2]
[327020295,1715719832319,-159.63814161,0.00010074,2]
[327020296,1715719832328,-165.6,0.00010139,2]
[327020297,1715719832337,-434.34,0.00010174,2]
[327020298,1715719832347,-434.34,0.00010177,2]
[327020299,1715719832356,-434.34,0.00010179,2]
[327020300,1715719832365,-221.76698142,0.00010182,2]
[327020301,1715719832376,-212.57301858,0.00010182,2]
[327020302,1715719832385,-434.34,0.00010185,2]
[327020303,1715719832394,-150.0,0.00010186,2]
[327020304,1715719832403,-300.0,0.00010186,2]
[327020305,1715719832412,-250.0,0.00010186,2]
[327020306,1715719832426,-150.99,0.00010186,2]
[327020307,1715719832440,-342.34,0.00010186,2]
[327020308,1715719832450,-434.34,0.00010187,2]
[327020309,1715719832460,-8283.16,0.00010187,2]
[327020310,1715719832470,-434.34,0.0001019,2]
[327020311,1715719832479,-434.34,0.00010193,2]
[327020312,1715719832489,-434.34,0.00010195,2]
[327020313,1715719832499,-434.34,0.00010198,2]
[327020314,1715719832508,-434.34,0.00010201,2]
[327020315,1715719832518,-434.34,0.00010203,2]
[327020316,1715719832528,-250.0,0.00010204,2]
[327020317,1715719832538,-434.34,0.00010206,2]
[327020318,1715719832547,-434.34,0.00010209,2]
[327020319,1715719832557,-434.34,0.00010212,2]
[327020320,1715719832566,-165.6,0.00010213,2]
[327020321,1715719832575,-434.34,0.00010214,2]
[327020322,1715719832586,-434.34,0.00010217,2]
[327020323,1715719832598,-434.34,0.0001022,2]
[327020324,1715719832608,-434.34,0.00010222,2]
[327020325,1715719832617,-182.57,0.00010223,2]
[327020326,1715719832628,-434.34,0.00010225,2]
[327020327,1715719832639,-165.6,0.00010286,2]
[327020329,1715719832648,-165.6,0.00010359,2]
[327020331,1715719832658,-159.63814161,0.00010578,2]
[327020332,1715719832667,-400.0,0.000108,3]
[327020334,1715719832677,-900.0,0.000109,3]
[327020336,1715719832686,-474.3,0.00010959,2]
[327020338,1715719832695,-449.6,0.00010988,2]
[327020340,1715719832705,-212.19434734,0.00011081,2]
[327020342,1715719832715,-1124.03057421,0.00011081,2]
[327020344,1715719832724,-171.47681867,0.00011081,2]
[327020346,1715719832733,-159.63814161,0.00011081,2]
[327020349,1715719832743,-904.53,0.00011142,2]
[327020350,1715719832752,-904.53,0.00011145,2]
[327020353,1715719832763,-904.53,0.00011148,2]
[327020355,1715719832772,-904.53,0.00011151,2]
[327020357,1715719832781,-904.53,0.00011154,2]
[327020359,1715719832790,-904.53,0.00011157,2]
[327020361,1715719832799,-904.53,0.0001116,2]
[327020362,1715719832808,-904.53,0.00011163,2]
[327020364,1715719832817,-904.53,0.00011166,2]
[327020366,1715719832826,-904.53,0.00011169,2]
[327020368,1715719832837,-183.05942095,0.0001117,2]
[327020370,1715719832846,-260.49,0.0001117,2]
[327020371,1715719832855,-260.49,0.0001117,2]
[327020373,1715719832864,-260.49,0.0001117,2]
[327020375,1715719832874,-260.49,0.0001117,2]
[327020377,1715719832884,-260.49,0.0001117,2]
[327020379,1715719832893,-904.53,0.00011172,2]
[327020382,1715719832902,-904.53,0.00011175,2]
[327020383,1715719832912,-904.53,0.00011178,2]
[327020385,1715719832921,-501.53502213,0.00011178,2]
[327020386,1715719832931,-575.35790887,0.00011178,2]
[327020387,1715719832940,-3549.48413846,0.00011178,2]
[327020388,1715719832949,-196.8758743,0.00011178,2]
[327020389,1715719832960,-1306.62286596,0.00011178,2]
[327020390,1715719832969,-392.43718635,0.00011179,2]
[327020391,1715719832978,-5801.06248471,0.00011179,2]
[327020392,1715719832987,-110847.97103158,0.0001118,2]
[327020393,1715719833000,-547.43728168,0.0001118,2]
[327020394,1715719833012,-558.15546194,0.0001118,2]
[327020395,1715719833023,-1266.60175907,0.0001118,2]
[327020396,1715719833036,-30832.3344385,0.0001118,2]
[327020397,1715719833051,-261.15578167,0.0001118,2]
[327020398,1715719833063,-13658.28963268,0.0001118,2]
[327020399,1715719833076,-5615.33786295,0.0001118,2]
[327020400,1715719833091,-5611.57327231,0.0001118,2]
[327020401,1715719833103,-18689.70909248,0.0001118,2]
[327020402,1715719833114,-339.04706187,0.0001118,2]
[327020403,1715719833128,-8399.83035407,0.0001118,2]
[327020404,1715719833336,-4121.07153573,0.0001118,2]
[327020405,1715719833347,-11373.03455129,0.0001118,2]
[327020406,1715719833359,-27191.22599672,0.0001118,2]
[327020407,1715719833370,-47497.15830619,0.0001118,2]
[327020408,1715719833381,-642.3977412,0.0001118,2]
[327020409,1715719833393,-903.55095595,0.0001118,2]
[327020410,1715719833404,-518.40021227,0.0001118,2]
[327020411,1715719833416,-1501.57922295,0.0001118,2]
[327020412,1715719833428,-919.26358847,0.0001118,2]
[327020413,1715719833441,-56395.61244704,0.0001118,2]
[327020414,1715719833453,-408.75323981,0.0001118,2]
[327020415,1715719833465,-1033.7,0.0001118,2]
[327020416,1715719833476,-761.75219466,0.0001118,2]
[327020417,1715719833487,-926.90673659,0.0001118,2]
[327020418,1715719833500,-5694.45398716,0.0001118,2]
[327020419,1715719833512,-60185.21882332,0.0001118,2]
[327020420,1715719833525,-300.6296171,0.0001118,2]
[327020421,1715719833538,-997.8724334,0.0001118,2]
[327020422,1715719833552,-2753.32629652,0.0001118,2]
[327020423,1715719833563,-1671.1711544,0.0001118,2]
[327020424,1715719833575,-283213.92614042,0.0001118,2]
[327020425,1715719833591,-1361.03592768,0.0001118,2]
[327020426,1715719833604,-3990.39052706,0.0001118,2]
[327020427,1715719833615,-455.94522447,0.0001118,2]
[327020428,1715719833626,-101916.65800476,0.0001118,2]
[327020429,1715719833638,-1275.75232492,0.0001118,2]
[327020430,1715719833650,-456.76620795,0.0001118,2]
[327020431,1715719833662,-850.0,0.0001118,2]
[327020432,1715719833674,-3685.64121882,0.0001118,2]
[327020433,1715719833687,-1673.69726498,0.0001118,2]
[327020434,1715719833705,-989.92837821,0.0001118,2]
[327020435,1715719833726,-935.25814264,0.0001118,2]
[327020436,1715719833742,-6241.32019456,0.0001118,2]
[327020437,1715719833757,-1438.40882084,0.0001118,2]
[327020438,1715719833780,-397.56791311,0.0001118,2]
[327020466,1715719838410,-6170.7915836,0.0001118,2]
[327020468,1715719838867,-5067.1382193,0.0001118,2]
[327020503,1715719840443,-363.98568217,0.0001118,2]
[327020505,1715719840455,-259059.45597197,0.0001118,2]
[327020507,1715719840466,-904.53,0.00011181,2]
[327020509,1715719840476,-904.53,0.00011184,2]
[327020511,1715719840485,-904.53,0.00011186,2]
[327020513,1715719840495,-904.53,0.00011189,2]
[327020515,1715719840505,-904.53,0.00011192,2]
[327020517,1715719840515,-904.53,0.00011195,2]
[327020519,1715719840525,-904.53,0.00011198,2]
[327020521,1715719840536,-210.0,0.00011205,2]
[327020523,1715719840547,-250.0,0.00011222,2]
[327020525,1715719840557,-688.0,0.00011421,2]
[327020527,1715719840569,-1124.03057421,0.00011536,2]
[327020529,1715719840580,-158.91,0.00011603,2]
[327020531,1715719840591,-1249.8992678,0.000118,2]
[327020534,1715719840603,-2218.0241,0.00011863,2]
[327020535,1715719840613,-1124.03057421,0.00011991,2]
[327020537,1715719840623,-17075.58664624,0.00012,2]
[327020540,1715719840639,-320.96907587,0.00012,2]
[327020542,1715719840652,-1300.44427789,0.00012,2]
[327020544,1715719840663,-300.0,0.00012,2]
[327020546,1715719840673,-1300.0,0.000121,4]
[327020548,1715719840683,-1800.0,0.000122,4]
[327020550,1715719840695,-449.6,0.00012209,2]
[327020553,1715719840706,-253.13001085,0.00012253,2]
[327020555,1715719840718,-2300.0,0.000123,4]
[327020557,1715719840728,-210.0,0.00012326,2]
[327020559,1715719840738,-260.49,0.00012388,2]
[327020561,1715719840749,-17488.29086925,0.00012398,2]
[327020563,1715719840761,-123653.10476584,0.00012398,2]
[327020565,1715719840771,-1760.44450369,0.000124,2]
[327020567,1715719840782,-10932.27936531,0.000124,2]
[327020569,1715719840791,-400.0,0.000124,4]
[327020572,1715719840804,-1124.03057421,0.00012445,2]
[327020574,1715719840815,-475.84151,0.00012452,2]
[327020576,1715719840826,-4228.035911,0.00012452,2]
[327020578,1715719840836,-400.0,0.000125,4]